[Event "Early-Titled-Tuesday-Blitz-March-05-2024"]
[Site "Chess.com"]
[Date "2024.03.05"]
[Round "8"]
[White "thesupera12"]
[Black "Neijin"]
[Result "0-1"]
[WhiteElo "2498"]
[BlackElo "2730"]
[TimeControl "180+1"]
[EndTime "9:32:12 PST"]
[Termination "Neijin won on time"]

1. d4 {[%clk 0:03:00.9]} 1... d5 {[%clk 0:02:58.1]} 2. Bg5 {[%clk 0:03:00]} 2...
c5 {[%clk 0:02:57.1]} 3. dxc5 {[%clk 0:02:59.5]} 3... Nc6 {[%clk 0:02:56.9]} 4.
Nc3 {[%clk 0:02:58.8]} 4... d4 {[%clk 0:02:56.5]} 5. Ne4 {[%clk 0:02:58.8]} 5...
Qd5 {[%clk 0:02:56.7]} 6. f3 {[%clk 0:02:15]} 6... Bf5 {[%clk 0:02:56.2]} 7. Bh4
{[%clk 0:02:03.1]} 7... Bxe4 {[%clk 0:02:52.8]} 8. fxe4 {[%clk 0:02:04]} 8...
Qxe4 {[%clk 0:02:53.5]} 9. Bf2 {[%clk 0:02:03.1]} 9... e5 {[%clk 0:02:53.7]} 10.
Qd3 {[%clk 0:02:02.9]} 10... Qxd3 {[%clk 0:02:52.9]} 11. exd3 {[%clk 0:02:03.8]}
11... Bxc5 {[%clk 0:02:53.1]} 12. O-O-O {[%clk 0:02:03.4]} 12... Nge7 {[%clk
0:02:50.4]} 13. Nf3 {[%clk 0:01:58.1]} 13... Rc8 {[%clk 0:02:47.6]} 14. a3
{[%clk 0:01:54.8]} 14... b5 {[%clk 0:02:45.2]} 15. Re1 {[%clk 0:01:52]} 15... f6
{[%clk 0:02:43.8]} 16. g4 {[%clk 0:01:50.4]} 16... h6 {[%clk 0:02:36]} 17. h4
{[%clk 0:01:47.2]} 17... a5 {[%clk 0:02:34.2]} 18. Bh3 {[%clk 0:01:45.1]} 18...
Rc7 {[%clk 0:02:24.3]} 19. g5 {[%clk 0:01:43.4]} 19... a4 {[%clk 0:02:20.4]} 20.
Rhg1 {[%clk 0:01:24.3]} 20... hxg5 {[%clk 0:02:16.5]} 21. Be6 {[%clk 0:01:23.2]}
21... b4 {[%clk 0:01:58.6]} 22. hxg5 {[%clk 0:01:20.4]} 22... bxa3 {[%clk
0:01:59]} 23. gxf6 {[%clk 0:01:20.6]} 23... gxf6 {[%clk 0:01:54.7]} 24. Rh1
{[%clk 0:01:11.5]} 24... Rf8 {[%clk 0:01:54.5]} 25. bxa3 {[%clk 0:01:06]} 25...
Bxa3+ {[%clk 0:01:54.1]} 26. Kd1 {[%clk 0:01:05.7]} 26... Nb4 {[%clk 0:01:50.3]}
27. Bc4 {[%clk 0:00:57.5]} 27... Bb2 {[%clk 0:01:46.4]} 28. Bb5+ {[%clk
0:00:52.7]} 28... Kd8 {[%clk 0:01:45.6]} 29. Bxa4 {[%clk 0:00:53.6]} 29... Ned5
{[%clk 0:01:46.2]} 30. Bb3 {[%clk 0:00:50.4]} 30... Bc3 {[%clk 0:01:36.2]} 31.
Reg1 {[%clk 0:00:46.6]} 31... Ra7 {[%clk 0:01:35.1]} 32. Rh4 {[%clk 0:00:33]}
32... Nf4 {[%clk 0:01:16.9]} 33. Rxf4 {[%clk 0:00:30.1]} 33... exf4 {[%clk
0:01:12.9]} 34. Nxd4 {[%clk 0:00:29.1]} 34... Ra1+ {[%clk 0:01:00.1]} 35. Ke2
{[%clk 0:00:29.3]} 35... Rxg1 {[%clk 0:00:58.9]} 36. Bxg1 {[%clk 0:00:28.1]}
36... Bxd4 {[%clk 0:00:54.7]} 37. Bxd4 {[%clk 0:00:29]} 37... Nc6 {[%clk
0:00:52.7]} 38. Bc5 {[%clk 0:00:26]} 38... Rh8 {[%clk 0:00:48.4]} 39. Kf3 {[%clk
0:00:26.1]} 39... Rh4 {[%clk 0:00:46.1]} 40. d4 {[%clk 0:00:15.6]} 40... Kc7
{[%clk 0:00:38.6]} 41. Be6 {[%clk 0:00:15.3]} 41... Rh2 {[%clk 0:00:27.5]} 42.
c4 {[%clk 0:00:13.4]} 42... Rd2 {[%clk 0:00:25.8]} 43. d5 {[%clk 0:00:12.1]}
43... Ne5+ {[%clk 0:00:25.6]} 44. Kxf4 {[%clk 0:00:12.4]} 44... Nxc4 {[%clk
0:00:25.6]} 45. Kf5 {[%clk 0:00:12.2]} 45... Nd6+ {[%clk 0:00:23.5]} 46. Bxd6+
{[%clk 0:00:08.5]} 46... Kxd6 {[%clk 0:00:24.4]} 47. Kxf6 {[%clk 0:00:09.4]}
47... Rf2+ {[%clk 0:00:24.8]} 48. Kg5 {[%clk 0:00:09.7]} 48... Ke5 {[%clk
0:00:25.2]} 49. Kg6 {[%clk 0:00:08.9]} 49... Kd6 {[%clk 0:00:21.3]} 50. Kg5
{[%clk 0:00:09]} 50... Rf1 {[%clk 0:00:20.5]} 51. Kg6 {[%clk 0:00:09.1]} 51...
Ke5 {[%clk 0:00:20.1]} 52. Kg7 {[%clk 0:00:08]} 52... Rf6 {[%clk 0:00:19.8]} 53.
Bf7 {[%clk 0:00:06.7]} 53... Rd6 {[%clk 0:00:16.9]} 54. Be6 {[%clk 0:00:07.1]}
54... Rd8 {[%clk 0:00:16.3]} 55. Kf7 {[%clk 0:00:07]} 55... Kd6 {[%clk
0:00:16.8]} 56. Kg7 {[%clk 0:00:06.7]} 56... Ke7 {[%clk 0:00:16.6]} 57. Kg6
{[%clk 0:00:06.6]} 57... Rf8 {[%clk 0:00:16.8]} 58. Kg7 {[%clk 0:00:06.7]} 58...
Rf1 {[%clk 0:00:16.6]} 59. Kg6 {[%clk 0:00:07.1]} 59... Rg1+ {[%clk 0:00:16.9]}
60. Kf5 {[%clk 0:00:07.2]} 60... Kd6 {[%clk 0:00:17.3]} 61. Kf6 {[%clk
0:00:07.1]} 61... Rf1+ {[%clk 0:00:17.7]} 62. Kg6 {[%clk 0:00:07.5]} 62... Ke5
{[%clk 0:00:18.1]} 63. Kg7 {[%clk 0:00:07.3]} 63... Rf2 {[%clk 0:00:17.7]} 64.
Kg8 {[%clk 0:00:07]} 64... Kf6 {[%clk 0:00:17.2]} 65. Kf8 {[%clk 0:00:06.6]}
65... Ra2 {[%clk 0:00:15]} 66. Ke8 {[%clk 0:00:06.5]} 66... Ra7 {[%clk
0:00:15.5]} 67. Kd8 {[%clk 0:00:06]} 67... Ke5 {[%clk 0:00:15.7]} 68. Kc8 {[%clk
0:00:06]} 68... Kd6 {[%clk 0:00:16.2]} 69. Kb8 {[%clk 0:00:05.7]} 69... Rc7
{[%clk 0:00:16.5]} 70. Ka8 {[%clk 0:00:02.6]} 70... Kc5 {[%clk 0:00:16.1]} 71.
Kb8 {[%clk 0:00:03]} 71... Kb6 {[%clk 0:00:15.9]} 72. Bg8 {[%clk 0:00:02.3]}
72... Re7 {[%clk 0:00:12.2]} 73. Be6 {[%clk 0:00:02.1]} 73... Re8+ {[%clk
0:00:11.9]} 74. Bc8 {[%clk 0:00:02.3]} 74... Kc5 {[%clk 0:00:12.5]} 75. Kc7
{[%clk 0:00:01.9]} 75... Kxd5 {[%clk 0:00:12.4]} 76. Bd7 {[%clk 0:00:02.1]}
76... Re7 {[%clk 0:00:12.9]} 77. Kd8 {[%clk 0:00:02.7]} 77... Rg7 {[%clk
0:00:12.7]} 78. Ke8 {[%clk 0:00:02.5]} 78... Kd6 {[%clk 0:00:12.9]} 79. Bf5
{[%clk 0:00:02.1]} 79... Rg5 {[%clk 0:00:12.1]} 80. Bh7 {[%clk 0:00:01.6]} 80...
Rh5 {[%clk 0:00:11.6]} 81. Bg6 {[%clk 0:00:01.3]} 81... Rh2 {[%clk 0:00:09.9]}
82. Kf7 {[%clk 0:00:01.7]} 82... Rf2+ {[%clk 0:00:09.8]} 83. Kg7 {[%clk
0:00:02.1]} 83... Ke6 {[%clk 0:00:10.2]} 0-1

[Event "Early-Titled-Tuesday-Blitz-March-05-2024"]
[Site "Chess.com"]
[Date "2024.03.05"]
[Round "8"]
[White "Mesa_1"]
[Black "ACollins05"]
[Result "1/2-1/2"]
[WhiteElo "2502"]
[BlackElo "2610"]
[TimeControl "180+1"]
[EndTime "9:32:28 PST"]
[Termination "Game drawn by repetition"]

1. e4 {[%clk 0:03:00.9]} 1... c5 {[%clk 0:02:59.9]} 2. Nf3 {[%clk 0:02:59.7]}
2... d6 {[%clk 0:03:00.2]} 3. d4 {[%clk 0:02:57.6]} 3... cxd4 {[%clk 0:03:01.1]}
4. Qxd4 {[%clk 0:02:56.4]} 4... Nc6 {[%clk 0:03:00.7]} 5. Qe3 {[%clk 0:02:56.4]}
5... Nf6 {[%clk 0:03:00.2]} 6. h3 {[%clk 0:02:55]} 6... g6 {[%clk 0:03:00.1]} 7.
Be2 {[%clk 0:02:55]} 7... Bg7 {[%clk 0:03:00.7]} 8. O-O {[%clk 0:02:55.5]} 8...
O-O {[%clk 0:03:01.1]} 9. Rd1 {[%clk 0:02:55.5]} 9... Bd7 {[%clk 0:03:00.2]} 10.
c4 {[%clk 0:02:51]} 10... Rc8 {[%clk 0:02:59.6]} 11. Nc3 {[%clk 0:02:49]} 11...
Na5 {[%clk 0:02:55.8]} 12. e5 {[%clk 0:02:08.6]} 12... dxe5 {[%clk 0:02:51.6]}
13. Nxe5 {[%clk 0:02:07]} 13... Qe8 {[%clk 0:02:16.9]} 14. b3 {[%clk 0:01:51.6]}
14... a6 {[%clk 0:02:17]} 15. Ba3 {[%clk 0:01:42.7]} 15... Nc6 {[%clk
0:02:06.2]} 16. Nxd7 {[%clk 0:01:33.8]} 16... Nxd7 {[%clk 0:02:02.1]} 17. Rac1
{[%clk 0:01:34.2]} 17... Nf6 {[%clk 0:01:51.3]} 18. Bf3 {[%clk 0:01:21.9]} 18...
Kh8 {[%clk 0:01:19.4]} 19. h4 {[%clk 0:01:11.2]} 19... h5 {[%clk 0:01:16.9]} 20.
Nd5 {[%clk 0:01:06.8]} 20... Nxd5 {[%clk 0:01:12.8]} 21. Bxd5 {[%clk 0:01:05.3]}
21... Kh7 {[%clk 0:01:07.2]} 22. g3 {[%clk 0:01:04.8]} 22... Rg8 {[%clk
0:00:55.8]} 23. Bxc6 {[%clk 0:00:44.6]} 23... Qxc6 {[%clk 0:00:56.7]} 24. Qxe7
{[%clk 0:00:43.1]} 24... Qf3 {[%clk 0:00:56.6]} 25. Qe3 {[%clk 0:00:30.5]} 25...
Qg4 {[%clk 0:00:48.3]} 26. Qf4 {[%clk 0:00:19.4]} 26... Qxf4 {[%clk 0:00:41.7]}
27. gxf4 {[%clk 0:00:20.3]} 27... Rgd8 {[%clk 0:00:41.2]} 28. Be7 {[%clk
0:00:19.9]} 28... Rxd1+ {[%clk 0:00:36.1]} 29. Rxd1 {[%clk 0:00:20.8]} 29... Rc7
{[%clk 0:00:36.4]} 30. Bd8 {[%clk 0:00:20.3]} 30... Rc8 {[%clk 0:00:36.1]} 31.
Rd7 {[%clk 0:00:20.1]} 31... Kg8 {[%clk 0:00:34.2]} 32. Kg2 {[%clk 0:00:20.5]}
32... b5 {[%clk 0:00:33.2]} 33. cxb5 {[%clk 0:00:19.4]} 33... axb5 {[%clk
0:00:34.1]} 34. a3 {[%clk 0:00:19.5]} 34... Rc3 {[%clk 0:00:32.2]} 35. a4 {[%clk
0:00:19.6]} 35... Rxb3 {[%clk 0:00:29.6]} 36. a5 {[%clk 0:00:19.8]} 36... Ra3
{[%clk 0:00:30.2]} 37. Ra7 {[%clk 0:00:19]} 37... b4 {[%clk 0:00:28.3]} 38. a6
{[%clk 0:00:18.5]} 38... b3 {[%clk 0:00:27]} 39. Rb7 {[%clk 0:00:16.9]} 39...
Rxa6 {[%clk 0:00:24.5]} 40. Rxb3 {[%clk 0:00:17.5]} 40... Ra4 {[%clk 0:00:24.3]}
41. Kf3 {[%clk 0:00:16.5]} 41... Bf8 {[%clk 0:00:21.1]} 42. Rb8 {[%clk
0:00:16.8]} 42... Kg7 {[%clk 0:00:18.8]} 43. Bf6+ {[%clk 0:00:17.4]} 43... Kxf6
{[%clk 0:00:18.3]} 44. Rxf8 {[%clk 0:00:17.9]} 44... Ra3+ {[%clk 0:00:18.2]} 45.
Kg2 {[%clk 0:00:17.5]} 45... Ke6 {[%clk 0:00:18.8]} 46. f3 {[%clk 0:00:17.6]}
46... f6 {[%clk 0:00:18]} 47. Kg3 {[%clk 0:00:17.9]} 47... Ra1 {[%clk
0:00:16.8]} 48. Rg8 {[%clk 0:00:17.4]} 48... Kf5 {[%clk 0:00:16.8]} 49. Rb8
{[%clk 0:00:18.1]} 49... Rg1+ {[%clk 0:00:16.3]} 50. Kf2 {[%clk 0:00:18.3]}
50... Rh1 {[%clk 0:00:16.6]} 51. Kg3 {[%clk 0:00:17.9]} 51... Rg1+ {[%clk
0:00:16]} 52. Kf2 {[%clk 0:00:18.4]} 52... Rd1 {[%clk 0:00:16.2]} 53. Rb5+
{[%clk 0:00:16.7]} 53... Ke6 {[%clk 0:00:16.4]} 54. Rb6+ {[%clk 0:00:17.6]}
54... Rd6 {[%clk 0:00:16.4]} 55. Rb5 {[%clk 0:00:18.5]} 55... Rd5 {[%clk
0:00:15.6]} 56. Rb6+ {[%clk 0:00:18]} 56... Kf5 {[%clk 0:00:15.8]} 57. Kg3
{[%clk 0:00:17.3]} 57... Ra5 {[%clk 0:00:16.4]} 58. Rb4 {[%clk 0:00:16.7]} 58...
Ra1 {[%clk 0:00:15.7]} 59. Re4 {[%clk 0:00:17.1]} 59... Rg1+ {[%clk 0:00:14.8]}
60. Kh2 {[%clk 0:00:17.7]} 60... Rd1 {[%clk 0:00:14.3]} 61. Kg3 {[%clk
0:00:18.1]} 61... Rd2 {[%clk 0:00:14.3]} 62. Rc4 {[%clk 0:00:18.5]} 62... Rd5
{[%clk 0:00:14.2]} 63. Rb4 {[%clk 0:00:18.6]} 63... Ra5 {[%clk 0:00:14.3]} 64.
Re4 {[%clk 0:00:19.2]} 64... Ra2 {[%clk 0:00:13.5]} 65. Rc4 {[%clk 0:00:19.5]}
65... Ra5 {[%clk 0:00:11.5]} 66. Rb4 {[%clk 0:00:19.7]} 66... Rc5 {[%clk
0:00:11.9]} 67. Rd4 {[%clk 0:00:20.2]} 67... Rb5 {[%clk 0:00:11.7]} 68. Re4
{[%clk 0:00:20.8]} 68... Rd5 {[%clk 0:00:11.3]} 69. Rc4 {[%clk 0:00:21.3]} 69...
Ke6 {[%clk 0:00:11.7]} 70. Rb4 {[%clk 0:00:21.7]} 70... Kf7 {[%clk 0:00:11.8]}
71. Rb6 {[%clk 0:00:22.2]} 71... Kg7 {[%clk 0:00:11.3]} 72. Rb7+ {[%clk
0:00:22.7]} 72... Kh6 {[%clk 0:00:10.9]} 73. Rb6 {[%clk 0:00:23.6]} 73... f5
{[%clk 0:00:10.2]} 74. Ra6 {[%clk 0:00:23.6]} 74... Rb5 {[%clk 0:00:10.2]} 75.
Rc6 {[%clk 0:00:23.7]} 75... Rb1 {[%clk 0:00:10.1]} 76. Rd6 {[%clk 0:00:23.9]}
76... Rg1+ {[%clk 0:00:10.4]} 77. Kf2 {[%clk 0:00:24]} 77... Rh1 {[%clk
0:00:10.7]} 78. Kg3 {[%clk 0:00:24.2]} 78... Rg1+ {[%clk 0:00:11.2]} 79. Kf2
{[%clk 0:00:24.5]} 79... Rc1 {[%clk 0:00:10.5]} 80. Rd2 {[%clk 0:00:23.2]} 80...
Rc7 {[%clk 0:00:10.9]} 81. Kg3 {[%clk 0:00:23.6]} 81... Kg7 {[%clk 0:00:11.4]}
82. Rd5 {[%clk 0:00:23.6]} 82... Rc6 {[%clk 0:00:11.4]} 83. Re5 {[%clk
0:00:24.1]} 83... Kf6 {[%clk 0:00:11.8]} 84. Rd5 {[%clk 0:00:24.2]} 84... Re6
{[%clk 0:00:12.1]} 85. Rc5 {[%clk 0:00:24.2]} 85... Rd6 {[%clk 0:00:12.2]} 86.
Rb5 {[%clk 0:00:24.8]} 86... Rc6 {[%clk 0:00:12.6]} 87. Ra5 {[%clk 0:00:25.3]}
87... Rd6 {[%clk 0:00:13]} 88. Rc5 {[%clk 0:00:25.8]} 88... Re6 {[%clk
0:00:13.3]} 89. Rd5 {[%clk 0:00:25.9]} 89... Re7 {[%clk 0:00:13.6]} 90. Kf2
{[%clk 0:00:25.5]} 90... Re6 {[%clk 0:00:13.8]} 91. Rd2 {[%clk 0:00:25.3]} 91...
Ke7 {[%clk 0:00:14]} 92. Rd3 {[%clk 0:00:25.6]} 92... Rd6 {[%clk 0:00:14.1]} 93.
Ke3 {[%clk 0:00:24.5]} 93... Rxd3+ {[%clk 0:00:12.7]} 94. Kxd3 {[%clk
0:00:25.4]} 94... Kd7 {[%clk 0:00:13.2]} 95. Kd4 {[%clk 0:00:21.1]} 95... Kd6
{[%clk 0:00:13.4]} 96. Kc4 {[%clk 0:00:21.7]} 96... Kc6 {[%clk 0:00:13.8]} 97.
Kd4 {[%clk 0:00:21.8]} 97... Kd6 {[%clk 0:00:14.3]} 98. Kc4 {[%clk 0:00:22.2]}
98... Kc6 {[%clk 0:00:14.9]} 99. Kd4 {[%clk 0:00:21.2]} 99... Kd6 {[%clk
0:00:15.3]} 1/2-1/2

[Event "Early-Titled-Tuesday-Blitz-March-05-2024"]
[Site "Chess.com"]
[Date "2024.03.05"]
[Round "8"]
[White "klercaku"]
[Black "emeli_chess"]
[Result "1-0"]
[WhiteElo "2213"]
[BlackElo "2415"]
[TimeControl "180+1"]
[EndTime "9:32:55 PST"]
[Termination "klercaku won on time"]

1. e4 {[%clk 0:03:00.9]} 1... c5 {[%clk 0:02:59.4]} 2. Nf3 {[%clk 0:03:01.2]}
2... d6 {[%clk 0:02:59.3]} 3. d4 {[%clk 0:03:01.8]} 3... cxd4 {[%clk 0:02:59.4]}
4. Nxd4 {[%clk 0:03:02.7]} 4... Nf6 {[%clk 0:02:59.2]} 5. Nc3 {[%clk 0:03:03.3]}
5... a6 {[%clk 0:02:59.6]} 6. Be2 {[%clk 0:03:03.7]} 6... e6 {[%clk 0:02:57.8]}
7. Be3 {[%clk 0:03:03.9]} 7... Be7 {[%clk 0:02:57.4]} 8. O-O {[%clk 0:03:03.4]}
8... O-O {[%clk 0:02:57.6]} 9. f4 {[%clk 0:02:57.4]} 9... Qc7 {[%clk 0:02:56.9]}
10. a3 {[%clk 0:02:47.4]} 10... Nc6 {[%clk 0:02:52.5]} 11. Bf3 {[%clk
0:02:45.7]} 11... Nxd4 {[%clk 0:02:46.9]} 12. Bxd4 {[%clk 0:02:45.5]} 12... e5
{[%clk 0:02:47.3]} 13. Be3 {[%clk 0:02:42.3]} 13... exf4 {[%clk 0:02:46.9]} 14.
Bxf4 {[%clk 0:02:42.4]} 14... Be6 {[%clk 0:02:47.2]} 15. Qd2 {[%clk 0:02:27.6]}
15... Nd7 {[%clk 0:02:46.4]} 16. Nd5 {[%clk 0:02:17.7]} 16... Bxd5 {[%clk
0:02:46.3]} 17. exd5 {[%clk 0:02:11.9]} 17... Ne5 {[%clk 0:02:38.2]} 18. b3
{[%clk 0:01:17.7]} 18... Bf6 {[%clk 0:02:33.9]} 19. Rae1 {[%clk 0:01:08.2]}
19... b5 {[%clk 0:02:31.8]} 20. Be4 {[%clk 0:01:02.1]} 20... g6 {[%clk
0:02:28.9]} 21. Bh6 {[%clk 0:00:55]} 21... Bg7 {[%clk 0:02:29.2]} 22. Be3 {[%clk
0:00:44.8]} 22... f5 {[%clk 0:02:27.4]} 23. Bd3 {[%clk 0:00:39.1]} 23... Rac8
{[%clk 0:02:25]} 24. Re2 {[%clk 0:00:25.7]} 24... Nxd3 {[%clk 0:02:06.8]} 25.
Qxd3 {[%clk 0:00:25.5]} 25... Qc3 {[%clk 0:02:06.5]} 26. Qxc3 {[%clk 0:00:20.6]}
26... Rxc3 {[%clk 0:02:05.8]} 27. Rd1 {[%clk 0:00:17.5]} 27... Rfc8 {[%clk
0:01:55.6]} 28. Rdd2 {[%clk 0:00:17.4]} 28... Rxe3 {[%clk 0:01:44.9]} 29. Rxe3
{[%clk 0:00:15.2]} 29... Bh6 {[%clk 0:01:45.2]} 30. Red3 {[%clk 0:00:12]} 30...
Bxd2 {[%clk 0:01:44.5]} 31. Rxd2 {[%clk 0:00:12.9]} 31... Re8 {[%clk 0:01:39.8]}
32. c4 {[%clk 0:00:10.7]} 32... bxc4 {[%clk 0:01:34.2]} 33. bxc4 {[%clk
0:00:11.6]} 33... Rc8 {[%clk 0:01:32.8]} 34. Rb2 {[%clk 0:00:05.8]} 34... Rxc4
{[%clk 0:01:31.4]} 35. Rb6 {[%clk 0:00:06.4]} 35... Ra4 {[%clk 0:01:26.5]} 36.
Rxd6 {[%clk 0:00:04.4]} 36... Rxa3 {[%clk 0:01:26.5]} 37. Rd7 {[%clk 0:00:04.6]}
37... Rd3 {[%clk 0:01:20.8]} 38. d6 {[%clk 0:00:03.8]} 38... a5 {[%clk
0:01:18.4]} 39. h3 {[%clk 0:00:02.5]} 39... a4 {[%clk 0:01:16.8]} 40. Rd8+
{[%clk 0:00:03]} 40... Kf7 {[%clk 0:01:15.4]} 41. d7 {[%clk 0:00:01.7]} 41... a3
{[%clk 0:01:05.4]} 42. Ra8 {[%clk 0:00:02.1]} 42... Rxd7 {[%clk 0:01:02.1]} 43.
Rxa3 {[%clk 0:00:01.6]} 43... h6 {[%clk 0:00:59.7]} 44. Kh2 {[%clk 0:00:02.2]}
44... Rd6 {[%clk 0:00:58.7]} 45. Rb3 {[%clk 0:00:02.9]} 45... Kf6 {[%clk
0:00:58.7]} 46. Rb7 {[%clk 0:00:03.6]} 46... g5 {[%clk 0:00:58.5]} 47. Rb2
{[%clk 0:00:04.3]} 47... f4 {[%clk 0:00:58.3]} 48. Rf2 {[%clk 0:00:04.9]} 48...
Rd3 {[%clk 0:00:57]} 49. Re2 {[%clk 0:00:05.1]} 49... Kf5 {[%clk 0:00:56.5]} 50.
Re8 {[%clk 0:00:04.3]} 50... Rd2 {[%clk 0:00:56.2]} 51. Rf8+ {[%clk 0:00:04.5]}
51... Ke5 {[%clk 0:00:52.7]} 52. Re8+ {[%clk 0:00:04.6]} 52... Kf6 {[%clk
0:00:52.9]} 53. Rf8+ {[%clk 0:00:04.6]} 53... Kg7 {[%clk 0:00:53.1]} 54. Rf5
{[%clk 0:00:04.3]} 54... Kg6 {[%clk 0:00:50.5]} 55. Rf8 {[%clk 0:00:04.2]} 55...
h5 {[%clk 0:00:50]} 56. Kg1 {[%clk 0:00:03.5]} 56... Ra2 {[%clk 0:00:47.4]} 57.
Kh2 {[%clk 0:00:03.1]} 57... Ra5 {[%clk 0:00:42.2]} 58. Rg8+ {[%clk 0:00:02.3]}
58... Kf6 {[%clk 0:00:40.5]} 59. Rf8+ {[%clk 0:00:02.9]} 59... Kg7 {[%clk
0:00:40.8]} 60. Re8 {[%clk 0:00:03.1]} 60... Kf7 {[%clk 0:00:37.6]} 61. Re2
{[%clk 0:00:02.7]} 61... Ra3 {[%clk 0:00:29.8]} 62. Kg1 {[%clk 0:00:02.6]} 62...
Kf6 {[%clk 0:00:28.1]} 63. Kf2 {[%clk 0:00:02.1]} 63... Kf5 {[%clk 0:00:27.1]}
64. Kg1 {[%clk 0:00:02.5]} 64... g4 {[%clk 0:00:26.8]} 65. hxg4+ {[%clk
0:00:02.4]} 65... hxg4 {[%clk 0:00:27.2]} 66. Re8 {[%clk 0:00:03]} 66... Ra1+
{[%clk 0:00:26.5]} 67. Kf2 {[%clk 0:00:01.8]} 67... g3+ {[%clk 0:00:25]} 68. Ke2
{[%clk 0:00:02.4]} 68... Ra2+ {[%clk 0:00:15.3]} 69. Kf1 {[%clk 0:00:02.9]}
69... Rf2+ {[%clk 0:00:14.5]} 70. Kg1 {[%clk 0:00:02.9]} 70... Rd2 {[%clk
0:00:12.6]} 71. Kf1 {[%clk 0:00:02.7]} 71... Rf2+ {[%clk 0:00:10.4]} 72. Kg1
{[%clk 0:00:02.7]} 72... Rb2 {[%clk 0:00:08.7]} 73. Kf1 {[%clk 0:00:02.4]} 73...
Rb5 {[%clk 0:00:08.9]} 74. Rf8+ {[%clk 0:00:01.9]} 74... Ke4 {[%clk 0:00:08.6]}
75. Re8+ {[%clk 0:00:02.3]} 75... Re5 {[%clk 0:00:08.6]} 76. Rd8 {[%clk
0:00:02.9]} 76... Ke3 {[%clk 0:00:07.9]} 77. Rd1 {[%clk 0:00:03.4]} 77... Re4
{[%clk 0:00:07.5]} 78. Re1+ {[%clk 0:00:04]} 78... Kd4 {[%clk 0:00:07.8]} 79.
Rd1+ {[%clk 0:00:04.2]} 79... Ke5 {[%clk 0:00:07.4]} 80. Ra1 {[%clk 0:00:03.9]}
80... Rd4 {[%clk 0:00:07.4]} 81. Ra8 {[%clk 0:00:03.1]} 81... Rd2 {[%clk
0:00:06.7]} 82. Re8+ {[%clk 0:00:02.9]} 82... Kd4 {[%clk 0:00:06.4]} 83. Rd8+
{[%clk 0:00:03.1]} 83... Ke3 {[%clk 0:00:06.7]} 84. Re8+ {[%clk 0:00:03.2]}
84... Kd3 {[%clk 0:00:06.9]} 85. Rd8+ {[%clk 0:00:03.6]} 85... Kc2 {[%clk
0:00:05.7]} 86. Rc8+ {[%clk 0:00:04.1]} 86... Kd1 {[%clk 0:00:05]} 87. Re8
{[%clk 0:00:04.7]} 87... Rf2+ {[%clk 0:00:03.9]} 88. Kg1 {[%clk 0:00:04.6]}
88... Re2 {[%clk 0:00:04.3]} 89. Rd8+ {[%clk 0:00:03.6]} 89... Ke1 {[%clk
0:00:03.8]} 90. Rf8 {[%clk 0:00:04.2]} 90... Rf2 {[%clk 0:00:04.1]} 91. Re8+
{[%clk 0:00:01.7]} 91... Kd2 {[%clk 0:00:02.9]} 92. Rd8+ {[%clk 0:00:02.4]}
92... Kc3 {[%clk 0:00:02.9]} 93. Rc8+ {[%clk 0:00:02.4]} 93... Kd4 {[%clk
0:00:02.9]} 94. Rc1 {[%clk 0:00:01.6]} 94... Rd2 {[%clk 0:00:01.6]} 95. Rf1
{[%clk 0:00:01.6]} 95... Ke3 {[%clk 0:00:01.2]} 96. Ra1 {[%clk 0:00:02.1]} 1-0